bitfinex/quotes_SOLUSD_20241209
["timestamp","ask_amount","ask_price","bid_price","bid_amount"]
[1733782641348,70.0,215.35,215.11,0.12549]
[1733782641349,0.6940695,215.35,215.22,0.12549]
[1733782641631,0.6940695,215.41,215.25,36.65072448]
[1733782641831,0.6940695,215.41,215.31,36.65072448]
[1733782642131,10.6940695,215.48,215.24,0.12549]
[1733782642332,0.12549,215.46,215.19,36.65072448]
[1733782642514,0.6940695,215.45,215.2,0.12549]
[1733782642715,0.6940695,215.48,215.29,36.65072448]
[1733782643032,0.6940695,215.48,215.24,0.12549]
[1733782643033,0.6940695,215.48,215.28,36.65072448]
[1733782643344,0.6940695,215.48,215.32,36.65072448]
[1733782643531,0.6940695,215.48,215.28,36.65072448]
[1733782643833,0.5557884,215.49,215.36,0.12549]
[1733782644012,0.5557884,215.49,215.39,36.65072448]
[1733782644214,0.5557884,215.49,215.34,36.65072448]
[1733782644426,0.5557884,215.49,215.36,36.65072448]
[1733782644635,0.5557884,215.49,215.42,36.65072448]
[1733782644811,0.5557884,215.49,215.38,36.65072448]
[1733782645133,0.5557884,215.49,215.4,36.65072448]
[1733782645337,0.5557884,215.49,215.38,36.65072448]
[1733782645534,0.5557884,215.49,215.33,0.69610571]
[1733782645842,0.5557884,215.49,215.4,36.65072448]
[1733782646049,0.5557884,215.49,215.45,36.65072448]
[1733782646213,0.5557884,215.49,215.39,37.34669551]
[1733782646411,0.5557884,215.49,215.37,36.65072448]
[1733782646714,0.5557884,215.49,215.4,36.65072448]
[1733782647031,0.5557884,215.49,215.42,36.65072448]
[1733782647341,0.5557884,215.49,215.44,36.65072448]
[1733782648114,0.5557884,215.49,215.4,36.65072448]
[1733782648348,0.5557884,215.49,215.42,36.65072448]
[1733782648711,0.5557884,215.49,215.38,36.65072448]
[1733782648931,0.5557884,215.49,215.39,0.12549]
[1733782649243,0.5557884,215.49,215.34,36.65072448]
[1733782649448,0.5557884,215.49,215.4,36.65072448]
[1733782650126,0.5557884,215.49,215.46,36.65072448]
[1733782650328,0.5557884,215.49,215.42,36.65072448]
[1733782650511,0.5557884,215.49,215.46,36.65072448]
[1733782651214,0.5557884,215.49,215.44,36.65072448]
[1733782651414,0.5557884,215.49,215.42,36.65072448]
[1733782651719,0.5557884,215.49,215.45,0.2]
[1733782652139,0.5557884,215.49,215.48,36.77621448]
[1733782652328,0.5557884,215.49,215.48,37.34637388]
[1733782652723,8.84e-05,215.49,215.48,84.12258836]
[1733782652922,8.84e-05,215.49,215.48,74.24807836]
[1733782653237,8.84e-05,215.49,215.48,84.24807836]
[1733782653817,0.5557884,215.7,215.51,0.25098]
[1733782654020,0.5557884,215.7,215.58,36.65072448]
[1733782654238,0.5557884,215.7,215.56,36.65072448]
[1733782654847,0.5557884,215.7,215.34,10.0]
[1733782654848,0.12549,215.66,215.34,10.0]
[1733782655061,0.12549,215.64,215.43,36.65072448]
[1733782655353,0.12549,215.64,215.35,12.30448485]
[1733782655354,0.12549,215.6,215.41,36.65072448]
[1733782655653,30.71102489,215.6,215.37,36.65072448]
[1733782655851,10.0,215.55,215.35,36.65072448]
[1733782656017,0.6940695,215.54,215.39,36.65072448]
[1733782656217,23.776884,215.55,215.36,37.34702374]
[1733782656443,23.776884,215.53,215.36,37.34702374]
[1733782656645,10.0,215.58,215.36,37.34702374]
[1733782656646,23.776884,215.51,215.36,37.34702374]
[1733782656955,0.6940695,215.5,215.36,37.34702374]
[1733782657278,0.6940695,215.5,215.38,36.65072448]
[1733782657481,23.776884,215.54,215.4,36.65072448]
[1733782657692,0.6940695,215.53,215.4,36.65072448]
[1733782657986,23.776884,215.54,215.4,36.65072448]
[1733782658275,23.776884,215.52,215.38,36.65072448]
[1733782658440,0.6940695,215.59,215.38,36.65072448]
[1733782658645,18.587319,215.58,215.42,36.65072448]
[1733782658870,0.6940695,215.57,215.42,36.65072448]
[1733782659168,0.6940695,215.62,215.42,36.65072448]
[1733782659643,0.6940695,215.62,215.44,36.65072448]
[1733782659849,0.6940695,215.62,215.46,36.65072448]
[1733782660091,0.6940695,215.62,215.48,36.65072448]
[1733782660294,0.6940695,215.62,215.45,0.89585113]
[1733782660295,10.6940695,215.64,215.45,0.2]
[1733782660470,10.0,215.62,215.45,0.2]
[1733782660781,0.8195595,215.61,215.45,0.2]
[1733782660966,10.0,215.6,215.45,0.2]
[1733782661174,0.12549,215.56,215.45,0.2]
[1733782661348,23.776884,215.51,215.45,0.2]
[1733782661553,0.6940695,215.5,215.45,0.2]
[1733782661746,23.776884,215.51,215.45,0.2]
[1733782661951,23.776884,215.49,215.45,0.2]
[1733782662183,23.776884,215.47,215.45,0.2]
[1733782662358,24.4709535,215.46,215.45,0.2]
[1733782662555,0.6940695,215.46,215.31,36.65072448]
[1733782662854,23.776884,215.53,215.33,36.65072448]
[1733782663056,23.776884,215.51,215.33,36.65072448]
[1733782663268,0.6940695,215.5,215.33,36.65072448]
[1733782663578,23.776884,215.49,215.31,36.65072448]
[1733782663876,1.86969076,215.53,215.33,36.65072448]
[1733782663877,0.6940695,215.48,215.33,36.65072448]
[1733782664066,23.776884,215.47,215.29,36.65072448]
[1733782664285,0.25098,215.44,215.23,36.65072448]
[1733782664489,23.776884,215.45,215.19,36.65072448]
[1733782664490,34.027864,215.42,215.19,36.65072448]
[1733782664662,10.0,215.36,215.13,36.65072448]
[1733782664850,0.6940695,215.41,215.04,16.0734]
[1733782664851,24.027864,215.31,215.07,36.65072448]
[1733782665050,20.0,215.32,214.99,3.9782]
[1733782665051,34.027864,215.27,215.03,36.65072448]
[1733782665351,34.027864,215.25,215.01,36.65072448]
[1733782665568,23.776884,215.23,215.02,0.12549]
[1733782665872,23.776884,215.21,214.95,0.5557884]
[1733782666073,10.0,215.17,214.95,0.5557884]
[1733782666284,23.902374,215.13,214.95,0.5557884]
[1733782666453,0.6940695,215.12,214.95,0.5557884]
[1733782666653,23.776884,215.11,214.95,0.5557884]
[1733782666847,23.776884,215.09,214.95,0.5557884]
[1733782667054,0.6940695,215.08,214.95,0.5557884]
[1733782667358,24.027864,215.14,214.95,0.5557884]
[1733782667561,23.776884,215.12,214.95,0.5557884]
[1733782667868,0.12549,215.14,214.95,0.5557884]
[1733782667869,23.776884,215.1,214.95,0.5557884]
[1733782668173,23.776884,215.08,214.95,0.5557884]
[1733782668375,0.6940695,215.09,214.95,0.5557884]
[1733782668376,23.776884,215.06,214.95,0.5557884]
[1733782668674,23.776884,215.04,214.95,0.5557884]
[1733782668892,0.6940695,215.03,214.95,0.5557884]
[1733782669054,71.93469944,215.12,214.95,0.5557884]
[1733782669055,23.776884,215.02,214.95,0.5557884]
[1733782669254,0.6940695,215.01,214.95,0.5557884]
[1733782669553,0.12549,215.09,214.95,0.5557884]
[1733782669877,0.12549,215.06,214.95,0.5557884]
[1733782670048,0.25098,215.04,214.95,0.5557884]
[1733782670253,24.027864,215.02,214.95,0.5557884]
[1733782670554,23.776884,215.0,214.95,0.5557884]
[1733782670878,10.0,215.08,214.95,0.5557884]
[1733782670879,0.6940695,214.99,214.95,0.5557884]
[1733782671074,23.776884,215.06,214.95,0.5557884]
[1733782671285,0.6940695,215.05,214.95,0.5557884]
[1733782671458,13.97,215.3,214.95,0.5557884]
[1733782671459,1.86749136,215.14,214.97,36.65072448]
[1733782671773,6.059,215.23,214.95,0.5557884]
[1733782671774,0.6940695,215.13,214.95,0.5557884]
[1733782672081,0.12549,215.12,214.95,0.5557884]
[1733782672283,0.12549,215.1,214.95,0.5557884]
[1733782672456,0.12549,215.04,214.95,0.5557884]
[1733782672652,0.6940695,215.04,214.95,0.5557884]
[1733782672871,23.776884,215.03,214.95,0.5557884]
[1733782673056,20.96572367,215.09,214.95,0.5557884]
[1733782673057,23.776884,215.01,214.95,0.5557884]
[1733782673260,23.776884,214.99,214.95,0.5557884]
[1733782673463,0.6940695,214.98,214.95,0.5557884]
[1733782674168,0.6940695,215.07,214.95,0.5557884]
[1733782674364,0.6940695,215.06,214.95,0.5557884]
[1733782674575,0.12549,215.05,214.95,0.5557884]
[1733782674887,0.6940695,215.04,214.95,0.5557884]
[1733782675668,0.6940695,215.06,214.95,0.5557884]
[1733782676279,0.6940695,215.13,214.95,0.5557884]
[1733782676871,0.6940695,215.16,214.96,0.25098]
[1733782677075,0.6940695,215.16,214.95,0.5557884]
[1733782677379,0.6940695,215.16,214.96,36.77621448]
[1733782677565,0.6940695,215.16,214.96,36.65072448]
[1733782677767,0.6940695,215.16,214.96,0.12549]
[1733782677995,0.6940695,215.18,214.96,36.65072448]
[1733782678164,0.6940695,215.18,214.96,36.90170448]
[1733782678363,0.6940695,215.18,214.98,36.65072448]
[1733782678671,0.6940695,215.18,214.99,0.12549]
[1733782678906,0.6940695,215.18,214.99,0.25098]
[1733782679202,0.6940695,215.19,215.01,0.12549]
[1733782679365,0.6940695,215.19,214.96,36.65072448]
[1733782679562,0.12549,215.18,214.95,0.5557884]
[1733782679762,0.6940695,215.17,214.95,0.5557884]
[1733782680386,24.027864,215.16,214.95,0.5557884]
[1733782680690,23.776884,215.14,214.95,0.5557884]
[1733782680988,0.6940695,215.2,215.03,36.65072448]
[1733782681189,0.6940695,215.22,215.07,36.65072448]
[1733782681389,16.4,215.33,215.11,36.65072448]
[1733782681390,0.6940695,215.31,215.11,36.65072448]
[1733782681590,0.6940695,215.31,215.14,0.12549]
[1733782681768,0.6940695,215.31,215.13,36.65072448]
[1733782682088,10.6940695,215.31,215.05,36.65072448]
[1733782682396,10.0,215.21,214.95,0.5557884]
[1733782682702,10.0,215.14,214.95,0.5557884]
[1733782682990,10.0,215.19,214.95,0.5557884]
[1733782682991,0.12549,215.1,214.95,0.5557884]
[1733782683211,0.12549,215.1,214.95,1e-08]
[1733782683212,0.12549,215.09,214.95,1e-08]
[1733782683375,23.776884,215.07,214.95,1e-08]
[1733782683698,23.776884,215.03,214.95,1e-08]
[1733782683901,23.902374,215.01,214.95,1e-08]
[1733782684069,0.6940695,215.0,214.95,1e-08]
[1733782684270,43.902374,215.07,214.95,1e-08]
[1733782684575,23.902374,215.05,214.95,1e-08]
[1733782684874,0.12549,215.02,214.95,1e-08]
[1733782685066,23.776884,215.01,214.95,1e-08]
[1733782685273,0.6940695,215.0,214.95,1e-08]
[1733782685589,23.776884,214.99,214.95,1e-08]
[1733782685792,23.776884,214.97,214.95,1e-08]
[1733782685991,24.4709535,214.96,214.95,1e-08]
[1733782686197,24.027864,214.95,214.73,0.69809086]
[1733782686370,23.776884,214.92,214.72,36.65072448]
[1733782686710,70.0,214.99,214.73,0.69827517]
[1733782686711,0.6940695,214.91,214.73,0.69827517]
[1733782687012,0.6940695,214.98,214.81,36.65072448]
[1733782687296,24.4709535,214.97,214.75,36.65072448]
[1733782687465,0.6940695,214.97,214.8,0.12549]
[1733782687669,24.027864,215.02,214.79,36.65072448]
[1733782687870,23.776884,215.0,214.8,0.6980476]
[1733782688114,0.6940695,214.99,214.82,0.12549]
[1733782688270,0.12549,215.02,214.77,36.65072448]
[1733782688469,0.12549,214.97,214.74,0.5557884]
[1733782688675,0.7697945,214.97,214.74,0.5557884]
[1733782688909,0.7697945,214.97,214.74,1.25394977]
[1733782689072,0.6443045,214.97,214.75,36.65072448]
[1733782689268,24.027864,214.96,214.74,0.5557884]
[1733782689489,23.902374,214.94,214.74,0.5557884]
[1733782689705,23.776884,214.92,214.74,0.5557884]
[1733782689909,0.6443045,214.91,214.74,0.5557884]
[1733782690801,0.6443045,214.93,214.75,36.90170448]
[1733782690993,0.6443045,215.01,214.85,36.65072448]
[1733782691173,1.86523823,215.04,214.87,36.65072448]
[1733782691371,0.6443045,215.08,214.92,0.12549]
[1733782691603,10.0,215.14,214.86,36.65072448]
[1733782691813,0.12549,215.08,214.82,36.77621448]
[1733782691977,0.12549,215.01,214.76,36.65072448]
[1733782692179,0.12549,214.96,214.74,0.5557884]
[1733782692377,0.6443045,214.96,214.76,36.65072448]
[1733782692576,0.6443045,214.96,214.74,0.5557884]
[1733782692577,24.027864,214.95,214.74,0.5557884]
[1733782692794,23.776884,214.93,214.74,0.5557884]
[1733782693009,0.6443045,214.92,214.74,37.20651288]
[1733782693383,0.6443045,214.92,214.76,36.65072448]
[1733782693590,0.6443045,214.95,214.78,36.65072448]
[1733782693777,0.6443045,215.0,214.88,36.65072448]
[1733782693986,18.642453,214.95,214.84,36.65072448]
[1733782694224,6.4354,215.11,214.69,26.1232]
[1733782694225,0.6443045,215.05,214.86,36.65072448]
[1733782694525,18.630327,215.09,214.93,0.25098]
[1733782694691,0.6443045,215.1,214.93,0.25098]
[1733782694888,0.6443045,215.1,214.92,36.65072448]
[1733782695130,0.6443045,215.14,214.96,36.65072448]
[1733782695341,0.6443045,215.14,214.9,36.65072448]
[1733782695609,19.2683945,215.14,214.94,36.65072448]
[1733782695821,0.6443045,215.14,214.98,36.65072448]
[1733782696111,0.6443045,215.18,215.0,36.65072448]
[1733782696438,2.55128203,215.25,215.12,36.65072448]
[1733782696602,0.6443045,215.29,215.14,36.65072448]
[1733782696791,0.6443045,215.35,215.07,36.65072448]
[1733782696990,10.12549,215.3,215.05,36.65072448]
[1733782697192,10.0,215.25,215.01,0.69709398]
[1733782697392,80.12549,215.28,214.96,0.6972776]
[1733782697393,6.4354,215.22,214.96,0.6972776]
[1733782697609,0.12549,215.19,214.93,36.65072448]
[1733782697835,0.12549,215.19,214.85,10.0]
[1733782697836,10.0,215.12,214.87,37.34830119]
[1733782698030,24.5466785,215.11,214.85,10.0]
[1733782698239,24.5466785,215.11,214.82,6.3858]
[1733782698240,20.0,215.08,214.91,36.65072448]
[1733782698546,20.0,215.08,214.87,36.65072448]
[1733782698547,20.0,215.04,214.87,36.65072448]
[1733782698712,20.0,215.04,214.85,36.65072448]
[1733782698713,20.0,215.0,214.85,36.65072448]
[1733782698916,0.6443045,215.03,214.85,37.34859718]
[1733782699145,23.776884,214.98,214.81,36.65072448]
[1733782699456,20.0,214.99,214.83,36.65072448]
[1733782699656,0.6443045,215.03,214.85,36.65072448]
[1733782699951,0.6443045,215.03,214.82,0.69796347]
[1733782699952,0.6443045,215.03,214.89,36.65072448]
[1733782700118,0.12549,215.1,214.87,36.65072448]
[1733782700321,5.72519917,215.06,214.87,36.65072448]
[1733782700521,0.6443045,215.05,214.91,36.65072448]
[1733782700719,0.6443045,215.13,214.93,36.65072448]
[1733782701350,0.6443045,215.13,214.91,36.65072448]
[1733782702422,0.6443045,215.14,214.95,36.65072448]
[1733782702716,0.6443045,215.14,214.96,0.69752365]
[1733782703140,0.6443045,215.14,214.91,36.65072448]
[1733782703444,0.6443045,215.14,214.95,36.65072448]
[1733782703645,0.6443045,215.14,214.97,36.65072448]
[1733782703941,0.6443045,215.24,215.09,36.65072448]
[1733782704118,0.6443045,215.3,215.11,36.65072448]
[1733782704314,0.6443045,215.3,215.12,0.69695553]
[1733782704518,3.55026628,215.3,215.05,36.65072448]
[1733782704748,10.0,215.27,215.01,36.65072448]
[1733782704917,10.0,215.27,214.91,1.90159248]
[1733782704918,0.12549,215.19,214.89,11.6335]
[1733782705121,0.12549,215.15,214.91,36.65072448]
[1733782705325,10.7697945,215.15,214.91,36.65072448]
[1733782705648,20.0,215.08,214.84,36.65072448]
[1733782705851,23.776884,214.99,214.8,36.65072448]
[1733782706028,20.0,214.96,214.8,36.65072448]
[1733782706228,20.0,214.96,214.8,37.34863837]
[1733782706537,70.12549,215.03,214.78,36.65072448]
[1733782706538,0.12549,215.03,214.78,36.65072448]
[1733782706733,0.12549,215.03,214.8,36.65072448]
[1733782707364,80.0,215.06,214.8,36.65072448]
[1733782707365,0.12549,215.02,214.8,36.65072448]
[1733782707528,86.5676,215.14,214.86,36.65072448]
[1733782707731,5.72519917,215.06,214.84,36.65072448]
[1733782707941,0.12549,215.07,214.84,36.65072448]
[1733782708146,0.12549,215.07,214.74,14.2120884]
[1733782708147,0.12549,214.98,214.74,4.2120884]
[1733782708446,70.0,215.12,214.86,36.65072448]
[1733782708646,20.0,215.09,214.86,36.65072448]
[1733782708836,20.0,215.09,214.88,36.65072448]
[1733782709034,1.85327469,215.13,214.91,0.12549]
[1733782709237,80.0,215.12,214.88,36.65072448]
[1733782709546,8.43474188,215.14,214.9,36.65072448]
[1733782709867,0.12549,215.13,214.9,36.65072448]
[1733782710165,8.43474188,215.14,214.93,0.25098]
[1733782710166,1.86714188,215.14,214.93,0.25098]
[1733782710450,80.0,215.21,214.95,36.65072448]
[1733782710659,70.0,215.19,214.88,11.6344]
[1733782710955,0.12549,215.18,214.91,36.65072448]
[1733782711632,70.0,215.22,214.93,36.65072448]
[1733782711845,70.0,215.22,214.88,11.6344]
[1733782711846,0.12549,215.2,214.96,36.65072448]
[1733782712156,70.0,215.22,214.96,36.65072448]
[1733782712359,70.0,215.19,214.94,36.65072448]
[1733782712566,0.12549,215.21,214.94,36.65072448]
[1733782712979,0.12549,215.21,214.96,36.65072448]
[1733782713159,8.50334082,215.23,215.02,36.65072448]
[1733782713469,8.50334082,215.23,215.04,36.65072448]
[1733782713671,0.12549,215.22,215.02,36.65072448]
[1733782713873,8.50334082,215.23,215.02,36.65072448]
[1733782714175,0.12549,215.22,215.0,36.65072448]
[1733782714381,0.12549,215.19,214.98,37.34792726]
[1733782714571,20.0,215.1,214.9,36.65072448]
[1733782714771,20.0,215.1,214.91,0.69772861]
[1733782714973,0.12549,215.09,214.9,36.65072448]
[1733782715274,20.0,215.06,214.88,36.65072448]
[1733782715660,21.93470321,215.06,214.88,36.65072448]
[1733782715861,20.0,215.02,214.88,36.65072448]
[1733782716373,23.902374,215.11,214.88,36.65072448]
[1733782716677,20.0,215.0,214.82,36.65072448]
[1733782716872,20.0,215.0,214.83,0.6979403]
[1733782717072,20.0,215.0,214.84,36.65072448]
[1733782717452,0.66712833,215.09,214.86,36.65072448]
[1733782717671,0.12549,215.02,214.84,36.65072448]
[1733782717870,20.0,214.99,214.82,36.65072448]
[1733782718579,90.0,215.1,214.86,36.65072448]
[1733782718777,90.0,215.1,214.74,0.5557884]
[1733782718778,20.0,215.04,214.82,36.65072448]
[1733782719349,0.12549,215.03,214.8,36.65072448]
[1733782719677,23.902374,214.99,214.8,36.65072448]
[1733782719894,6.5676,215.03,214.8,36.65072448]
[1733782720175,20.0,214.96,214.78,36.65072448]
[1733782720377,20.0,214.96,214.8,36.65072448]
[1733782720761,23.902374,214.95,214.78,36.65072448]
[1733782720961,20.0,214.92,214.76,37.34859955]
[1733782721158,20.0,214.92,214.8,36.65072448]
[1733782721360,24.027864,214.99,214.78,36.65072448]
[1733782721562,20.0,214.92,214.74,37.90453314]
[1733782721881,20.0,214.92,214.74,37.20651288]
[1733782722054,20.0,214.88,214.74,0.5557884]
[1733782722255,20.0,214.84,214.74,0.5557884]
[1733782722682,24.027864,214.83,214.74,0.5557884]
[1733782722863,44.59604908,214.83,214.74,0.5557884]
[1733782723177,20.0,214.79,214.62,36.65072448]
[1733782723484,23.902374,214.74,214.56,36.65072448]
[1733782723669,20.0,214.71,214.56,36.65072448]
[1733782724013,5.29906036,214.79,214.57,36.65072448]
[1733782724286,5.29906036,214.79,214.52,0.5557884]
[1733782724287,20.0,214.7,214.54,36.65072448]
[1733782724780,20.0,214.66,214.52,0.5557884]
[1733782725150,20.0,214.62,214.52,0.5557884]
[1733782725350,20.0,214.58,214.52,0.5557884]
[1733782725766,21.86992433,214.58,214.52,0.5557884]
[1733782726086,0.12549,214.57,214.52,0.5557884]
[1733782726296,24.027864,214.53,214.3,0.69936984]
[1733782726604,20.0,214.41,214.23,37.01734215]
[1733782726811,20.0,214.41,214.23,37.71718948]
[1733782726957,20.0,214.41,214.2,1.0]
[1733782726958,20.0,214.32,214.2,1.0]
[1733782727158,20.0,214.32,214.1,0.5557884]
[1733782727159,20.0,214.23,214.1,0.5557884]
[1733782727359,20.0,214.15,213.9,37.01734215]
[1733782727555,20.0,214.15,213.88,9.48455725]
[1733782727556,20.0,214.07,213.89,0.7008677]
[1733782727865,0.6898,214.15,213.93,40.71831109]
[1733782728176,20.0,214.19,214.03,37.01734215]
[1733782728457,0.12549,214.14,213.96,0.70061019]
[1733782728665,0.12549,214.06,213.93,3.0]
[1733782728873,0.25098,214.06,213.88,0.5557884]
[1733782729161,90.0,214.07,213.85,0.14415437]
[1733782729162,23.902374,213.95,213.85,0.14415437]
[1733782729464,23.902374,213.95,213.65,10.0]
[1733782729465,10.0,213.86,213.61,10.0]
[1733782729668,80.12549,213.78,213.6,3.50570529]
[1733782729840,20.0,213.71,213.6,1.29179898]
[1733782730046,0.12549,213.64,213.48,0.8804639]
[1733782730369,70.0,213.81,213.51,37.01734215]
[1733782730536,10.0,213.77,213.48,1.58268921]
[1733782730745,10.0,213.66,213.48,0.8804639]
[1733782731063,70.0,213.59,213.48,0.8804639]
[1733782731237,70.0,213.7,213.48,0.8804639]
[1733782731571,80.0,213.68,213.48,0.8804639]
[1733782731752,23.776884,213.58,213.48,0.8804639]
[1733782731950,5.32319499,213.61,213.48,0.8804639]
[1733782732266,9.38009089,213.77,213.48,10.8804639]
[1733782732485,70.0,213.65,213.48,0.8804639]
[1733782732771,10.0,213.68,213.25,37.01734215]
[1733782732772,0.12549,213.51,213.25,37.01734215]
[1733782733073,0.12549,213.51,213.18,48.74444215]
[1733782733074,0.12549,213.44,213.3,37.01734215]
[1733782733242,70.0,213.62,213.39,37.01734215]
[1733782733559,4.96281307,213.61,213.45,37.01734215]
[1733782733777,0.12549,213.62,213.47,37.01734215]
[1733782733939,0.12549,213.62,213.45,37.01734215]
[1733782734145,0.12549,213.62,213.47,37.01734215]
[1733782734340,0.12549,213.6,213.33,0.70258359]
[1733782734544,0.12549,213.6,213.16,10.0]
[1733782734545,0.12549,213.51,213.16,10.0]
[1733782734745,0.25098,213.42,213.17,0.70306322]
[1733782734982,70.0,213.46,213.14,0.8804639]
[1733782734983,10.0,213.34,213.14,0.8804639]
[1733782735174,0.12549,213.28,213.14,0.8804639]
[1733782735339,0.12549,213.26,213.14,0.8804639]
[1733782735683,10.12549,213.31,213.14,0.8804639]
[1733782735684,20.0,213.4,213.25,37.01734215]
[1733782735884,70.0,213.57,213.26,0.70325831]
[1733782736041,1.1834,213.72,213.26,0.70325831]
[1733782736042,3.03542991,213.56,213.48,37.01734215]
[1733782736372,70.0,213.72,213.53,37.01734215]
[1733782736593,70.0,213.73,213.53,37.01734215]
[1733782736743,10.0,213.6,213.42,37.01734215]
[1733782736950,70.0,213.52,213.32,18.757056]
[1733782737167,70.0,213.44,213.21,37.01734215]
[1733782737479,70.0,213.46,213.25,37.01734215]
[1733782737641,1.1834,213.59,213.14,0.8804639]
[1733782737642,3.88878471,213.52,213.28,10.0]
[1733782737840,70.0,213.54,213.42,37.01734215]
[1733782738042,70.0,213.54,213.36,37.01734215]
[1733782738270,70.0,213.6,213.3,0.12549]
[1733782738480,76.5002,213.63,213.47,37.01734215]
[1733782738680,70.0,213.67,213.51,37.01734215]
[1733782738840,70.0,213.67,213.53,37.01734215]
[1733782739044,6.5002,213.77,213.4,37.01734215]
[1733782739045,70.0,213.84,213.66,37.01734215]
[1733782739247,10.0,213.81,213.52,23.776884]
[1733782739481,70.0,213.69,213.38,0.12549]
[1733782739681,70.0,213.72,213.55,37.01734215]
[1733782739847,10.0,213.69,213.5,37.01734215]
[1733782740150,70.0,213.6,213.4,37.01734215]
[1733782740350,234.43382806,213.78,213.48,37.01734215]
[1733782740351,70.0,213.67,213.48,37.01734215]
[1733782740673,18.760211,213.59,213.58,37.01734215]
[1733782740972,70.0,213.82,213.58,37.01734215]
[1733782741179,70.0,213.76,213.39,10.0]
[1733782741476,70.0,213.68,213.49,37.01734215]
[1733782741655,70.28014874,213.75,213.55,37.01734215]
[1733782741854,70.0,213.7,213.51,37.01734215]
[1733782742055,70.0,213.66,213.32,11.7189]
[1733782742255,20.0,213.55,213.33,37.01734215]
[1733782742456,20.0,213.51,213.27,1.94748485]
[1733782742678,20.0,213.36,213.2,37.01734215]
[1733782742852,70.0,213.46,213.28,37.01734215]
[1733782743051,20.0,213.51,213.32,37.01734215]
[1733782743294,20.0,213.47,213.27,37.01734215]
[1733782743579,0.12549,213.36,213.14,37.89780605]
[1733782743757,70.0,213.31,213.17,37.01734215]
[1733782743955,20.0,213.31,213.14,0.8804639]
[1733782744163,71.92764565,213.42,213.19,37.01734215]
[1733782744358,20.0,213.39,213.24,37.01734215]
[1733782744572,20.0,213.38,213.22,37.01734215]
[1733782744784,20.0,213.36,213.2,37.01734215]
[1733782744988,20.0,213.38,213.2,37.01734215]
[1733782745155,70.0,213.59,213.33,37.01734215]
[1733782745351,6.5002,213.63,213.41,0.12549]
[1733782745655,6.5002,213.63,213.44,37.01734215]
[1733782745852,70.0,213.66,213.4,37.01734215]
[1733782746200,70.0,213.52,213.29,23.776884]
[1733782746355,70.0,213.47,213.28,37.01734215]
[1733782746575,70.0,213.46,213.24,37.01734215]
[1733782746773,0.12549,213.42,213.24,37.01734215]
[1733782746977,70.0,213.5,213.28,37.01734215]
[1733782747177,70.0,213.59,213.36,37.01734215]
[1733782747402,70.0,213.55,213.32,37.01734215]
[1733782747607,70.0,213.49,213.24,37.01734215]
[1733782747783,70.0,213.44,213.22,37.01734215]
[1733782748189,70.0,213.42,213.16,37.01734215]
[1733782748497,70.0,213.45,213.25,37.01734215]
[1733782748695,0.12549,213.37,213.21,37.01734215]
[1733782748921,70.0,213.51,213.31,37.01734215]
[1733782749131,234.43382806,213.62,213.18,37.01734215]
[1733782749132,1.8667993,213.58,213.43,37.01734215]
[1733782749422,70.0,213.72,213.52,37.01734215]
[1733782749582,20.0,213.79,213.4,10.12549]
[1733782749583,70.0,213.76,213.56,37.01734215]
[1733782749778,70.0,213.72,213.5,37.01734215]
[1733782750004,30.68353647,213.78,213.42,37.01734215]
[1733782750005,70.0,213.62,213.42,37.01734215]
[1733782750188,70.0,213.56,213.38,37.01734215]
[1733782750388,70.0,213.56,213.31,37.01734215]
[1733782750389,70.0,213.5,213.31,37.01734215]
[1733782750780,70.0,213.59,213.38,37.01734215]
[1733782750987,70.0,213.59,213.3,0.12549]
[1733782750988,70.0,213.71,213.48,37.01734215]
[1733782751198,70.0,213.75,213.46,10.0]
[1733782751377,70.0,213.59,213.45,37.01734215]
[1733782751574,1.42179255,213.74,213.52,37.01734215]
[1733782751879,70.0,213.77,213.41,10.0]
[1733782751880,70.0,213.77,213.54,37.01734215]
[1733782752081,70.0,213.74,213.5,37.01734215]
[1733782752384,18.750284,213.78,213.6,37.01734215]
[1733782752581,18.750284,213.78,213.64,37.01734215]
[1733782752783,18.750284,213.78,213.77,37.01734215]
[1733782752984,70.0,214.03,213.77,37.01734215]
[1733782753280,6.5002,214.08,213.76,37.01734215]